[Event "Latvijas 2022. gada jauniešu čempionāta fināls"]
[Site "Riga, Latvia"]
[Date "2022.06.15"]
[Round "6.7"]
[White "Mierina, Lauma"]
[Black "Maklakova, Naomi"]
[Result "0-1"]
[TimeControl "3600+30"]
[WhiteElo "1195"]
[BlackElo "1488"]

1. e4 {[%clk 01:00:59]} {[%emt 00:00:01]} e5 {[%clk 01:00:30]} {[%emt
00:00:29]} 2. Nf3 {[%clk 01:01:17]} {[%emt 00:00:12]} Nc6 {[%clk 00:59:09]}
{[%emt 00:01:51]} 3. d4 {[%clk 01:01:35]} {[%emt 00:00:12]} exd4 {[%clk
00:59:19]} {[%emt 00:00:21]} 4. Nxd4 {[%clk 01:01:51]} {[%emt 00:00:14]} Nf6
{[%clk 00:59:23]} {[%emt 00:00:26]} 5. Nc3 {[%clk 01:01:55]} {[%emt 00:00:25]}
Bb4 {[%clk 00:59:38]} {[%emt 00:00:15]} 6. Nxc6 {[%clk 01:01:54]} {[%emt
00:00:32]} bxc6 {[%clk 00:57:19]} {[%emt 00:02:49]} 7. Bd3 {[%clk 01:01:55]}
{[%emt 00:00:28]} O-O {[%clk 00:56:17]} {[%emt 00:01:32]} 8. O-O {[%clk
01:01:56]} {[%emt 00:00:29]} d5 {[%clk 00:56:38]} {[%emt 00:00:10]} 9. exd5
{[%clk 01:01:47]} {[%emt 00:00:39]} cxd5 {[%clk 00:56:50]} {[%emt 00:00:18]} 10.
Bg5 {[%clk 01:01:38]} {[%emt 00:00:38]} c6 {[%clk 00:57:12]} {[%emt 00:00:09]}
11. Qf3 {[%clk 00:59:43]} {[%emt 00:02:25]} Be7 {[%clk 00:57:28]} {[%emt
00:00:13]} 12. h3 {[%clk 00:58:54]} {[%emt 00:01:19]} Be6 {[%clk 00:56:28]}
{[%emt 00:01:31]} 13. Rfe1 {[%clk 00:57:44]} {[%emt 00:01:40]} Rb8 {[%clk
00:52:43]} {[%emt 00:04:14]} 14. Rab1 {[%clk 00:57:44]} {[%emt 00:00:30]} h6
{[%clk 00:49:36]} {[%emt 00:03:38]} 15. Bh4 {[%clk 00:57:43]} {[%emt 00:00:31]}
Rb4 {[%clk 00:38:30]} {[%emt 00:11:35]} 16. Bg3 {[%clk 00:57:21]} {[%emt
00:00:53]} d4 {[%clk 00:37:47]} {[%emt 00:01:12]} 17. Ne4 {[%clk 00:56:59]}
{[%emt 00:00:52]} Bxa2 {[%clk 00:35:21]} {[%emt 00:02:57]} 18. Ra1 {[%clk
00:42:24]} {[%emt 00:15:05]} Bd5 {[%clk 00:22:55]} {[%emt 00:12:56]} 19. Nxf6+
{[%clk 00:38:14]} {[%emt 00:04:39]} Bxf6 {[%clk 00:23:14]} {[%emt 00:00:11]} 20.
Qf5 {[%clk 00:37:11]} {[%emt 00:01:33]} g6 {[%clk 00:23:37]} {[%emt 00:00:08]}
21. Qf4 {[%clk 00:30:54]} {[%emt 00:06:46]} Bg7 {[%clk 00:16:24]} {[%emt
00:07:43]} 22. Rxa7 {[%clk 00:25:24]} {[%emt 00:06:00]} Rxb2 {[%clk 00:16:37]}
{[%emt 00:00:18]} 23. h4 {[%clk 00:24:41]} {[%emt 00:01:13]} h5 {[%clk
00:15:06]} {[%emt 00:02:00]} 24. Qc1 {[%clk 00:22:45]} {[%emt 00:02:26]} Qb6
{[%clk 00:14:56]} {[%emt 00:00:41]} 25. Rae7 {[%clk 00:21:35]} {[%emt
00:01:40]} c5 {[%clk 00:12:09]} {[%emt 00:03:17]} 26. Bc7 {[%clk 00:19:21]}
{[%emt 00:02:44]} Qb4 {[%clk 00:12:06]} {[%emt 00:00:33]} 27. Bd6 {[%clk
00:18:22]} {[%emt 00:01:29]} Ra2 {[%clk 00:10:37]} {[%emt 00:01:59]} 28. Rc7
{[%clk 00:16:43]} {[%emt 00:02:08]} Qb6 {[%clk 00:10:01]} {[%emt 00:01:06]} 29.
Bxf8 {[%clk 00:16:00]} {[%emt 00:01:13]} Qxc7 {[%clk 00:10:09]} {[%emt
00:00:22]} 30. Bxg7 {[%clk 00:16:16]} {[%emt 00:00:14]} Kxg7 {[%clk 00:10:31]}
{[%emt 00:00:09]} 31. Qg5 {[%clk 00:15:11]} {[%emt 00:01:35]} Be6 {[%clk
00:07:11]} {[%emt 00:03:50]} 32. f3 {[%clk 00:11:45]} {[%emt 00:03:56]} Qd6
{[%clk 00:05:05]} {[%emt 00:02:37]} 33. Be4 {[%clk 00:10:13]} {[%emt 00:02:00]}
c4 {[%clk 00:05:17]} {[%emt 00:00:19]} 34. Qb5 {[%clk 00:09:50]} {[%emt
00:00:52]} Qg3 {[%clk 00:05:10]} {[%emt 00:00:38]} 35. Rf1 {[%clk 00:09:16]}
{[%emt 00:01:03]} Bh3 {[%clk 00:04:57]} {[%emt 00:00:43]} 36. Qg5 {[%clk
00:08:01]} {[%emt 00:01:45]} Qxg5 {[%clk 00:04:58]} {[%emt 00:00:30]} 37. hxg5
{[%clk 00:08:22]} {[%emt 00:00:09]} Bf5 {[%clk 00:04:45]} {[%emt 00:00:43]} 38.
Bd5 {[%clk 00:08:16]} {[%emt 00:00:35]} Rxc2 {[%clk 00:05:01]} {[%emt
00:00:15]} 39. g4 {[%clk 00:07:45]} {[%emt 00:01:00]} Bd3 {[%clk 00:05:01]}
{[%emt 00:00:30]} 40. Rd1 {[%clk 00:07:21]} {[%emt 00:00:55]} Re2 {[%clk
00:04:30]} {[%emt 00:01:00]} 41. gxh5 {[%clk 00:06:18]} {[%emt 00:01:33]} gxh5
{[%clk 00:04:54]} {[%emt 00:00:07]} 42. f4 {[%clk 00:06:05]} {[%emt 00:00:43]}
h4 {[%clk 00:05:04]} {[%emt 00:00:20]} 43. f5 {[%clk 00:05:27]} {[%emt
00:01:08]} Re5 {[%clk 00:05:13]} {[%emt 00:00:20]} 44. f6+ {[%clk 00:04:49]}
{[%emt 00:01:08]} Kg6 {[%clk 00:05:32]} {[%emt 00:00:12]} 45. Bf3 {[%clk
00:05:01]} {[%emt 00:00:17]} Rxg5+ {[%clk 00:05:50]} {[%emt 00:00:12]} 46. Kh2
{[%clk 00:05:15]} {[%emt 00:00:16]} Kxf6 {[%clk 00:06:03]} {[%emt 00:00:18]} 47.
Rc1 {[%clk 00:04:23]} {[%emt 00:01:22]} c3 {[%clk 00:05:48]} {[%emt 00:00:44]}
0-1

[Event "Latvijas 2022. gada jauniešu čempionāta fināls"]
[Site "Riga, Latvia"]
[Date "2022.06.15"]
[Round "6.9"]
[White "Ozolina, Elina"]
[Black "Ter-Avetisjana, Agnesa Stepania"]
[Result "0-1"]
[TimeControl "3600+30"]
[WhiteElo "1057"]
[BlackElo "2006"]

1. e4 {[%clk 01:00:57]} {[%emt 00:00:02]} c6 {[%clk 00:58:49]} {[%emt
00:02:04]} 2. d4 {[%clk 01:01:20]} {[%emt 00:00:16]} d5 {[%clk 00:59:12]}
{[%emt 00:00:07]} 3. exd5 {[%clk 01:01:32]} {[%emt 00:00:17]} cxd5 {[%clk
00:59:35]} {[%emt 00:00:07]} 4. Bd3 {[%clk 01:01:54]} {[%emt 00:00:08]} Nc6
{[%clk 01:00:00]} {[%emt 00:00:05]} 5. c3 {[%clk 01:02:16]} {[%emt 00:00:08]}
Qc7 {[%clk 01:00:25]} {[%emt 00:00:05]} 6. h3 {[%clk 01:02:35]} {[%emt
00:00:11]} g6 {[%clk 00:59:23]} {[%emt 00:01:32]} 7. Nf3 {[%clk 00:57:40]}
{[%emt 00:05:25]} Bf5 {[%clk 00:59:06]} {[%emt 00:00:47]} 8. O-O {[%clk
00:57:00]} {[%emt 00:01:10]} Bxd3 {[%clk 00:57:52]} {[%emt 00:01:44]} 9. Qxd3
{[%clk 00:57:17]} {[%emt 00:00:13]} Bg7 {[%clk 00:58:11]} {[%emt 00:00:11]} 10.
Re1 {[%clk 00:54:05]} {[%emt 00:03:41]} Nf6 {[%clk 00:55:46]} {[%emt 00:02:56]}
11. Nbd2 {[%clk 00:52:19]} {[%emt 00:02:15]} O-O {[%clk 00:54:49]} {[%emt
00:01:27]} 12. Nf1 {[%clk 00:51:56]} {[%emt 00:00:54]} Rfe8 {[%clk 00:53:26]}
{[%emt 00:01:53]} 13. Bg5 {[%clk 00:45:06]} {[%emt 00:07:20]} Ne4 {[%clk
00:53:17]} {[%emt 00:00:40]} 14. Qe3 {[%clk 00:39:28]} {[%emt 00:06:05]} Na5
{[%clk 00:49:22]} {[%emt 00:04:26]} 15. N1d2 {[%clk 00:35:45]} {[%emt
00:04:14]} Nxg5 {[%clk 00:47:55]} {[%emt 00:01:58]} 16. Qxg5 {[%clk 00:32:56]}
{[%emt 00:03:18]} Rad8 {[%clk 00:47:37]} {[%emt 00:00:48]} 17. Rad1 {[%clk
00:31:36]} {[%emt 00:01:49]} b5 {[%clk 00:46:38]} {[%emt 00:01:30]} 18. Re2
{[%clk 00:25:09]} {[%emt 00:06:57]} Nc4 {[%clk 00:45:50]} {[%emt 00:01:18]} 19.
Nb3 {[%clk 00:24:30]} {[%emt 00:01:09]} a5 {[%clk 00:41:05]} {[%emt 00:05:16]}
20. Nc5 {[%clk 00:24:02]} {[%emt 00:00:56]} e5 {[%clk 00:38:31]} {[%emt
00:03:04]} 21. b3 {[%clk 00:19:24]} {[%emt 00:05:09]} exd4 {[%clk 00:34:02]}
{[%emt 00:04:59]} 22. Rxe8+ {[%clk 00:19:04]} {[%emt 00:00:49]} Rxe8 {[%clk
00:34:17]} {[%emt 00:00:16]} 23. cxd4 {[%clk 00:19:03]} {[%emt 00:00:31]} Nb6
{[%clk 00:33:27]} {[%emt 00:01:20]} 24. Rd2 {[%clk 00:12:03]} {[%emt 00:07:29]}
Qd6 {[%clk 00:28:45]} {[%emt 00:05:12]} 25. Qg3 {[%clk 00:08:47]} {[%emt
00:03:46]} Qe7 {[%clk 00:25:03]} {[%emt 00:04:13]} 26. Kf1 {[%clk 00:03:47]}
{[%emt 00:05:29]} Bxd4 {[%clk 00:22:14]} {[%emt 00:03:20]} 27. Rxd4 {[%clk
00:02:21]} {[%emt 00:01:56]} Qxc5 {[%clk 00:22:36]} {[%emt 00:00:08]} 28. Qf4
{[%clk 00:01:28]} {[%emt 00:01:17]} Qc6 {[%clk 00:19:06]} {[%emt 00:04:06]} 29.
Ne5 {[%clk 00:01:10]} {[%emt 00:00:46]} Qe6 {[%clk 00:19:16]} {[%emt 00:00:23]}
30. Nf3 {[%clk 00:00:45]} {[%emt 00:00:54]} Nd7 {[%clk 00:18:53]} {[%emt
00:00:53]} 31. Kg1 {[%clk 00:00:37]} {[%emt 00:00:37]} Nf6 {[%clk 00:17:42]}
{[%emt 00:01:42]} 32. Ng5 {[%clk 00:00:36]} {[%emt 00:00:31]} Qe1+ {[%clk
00:17:48]} {[%emt 00:00:25]} 33. Kh2 {[%clk 00:00:59]} {[%emt 00:00:07]} Qe5
{[%clk 00:18:02]} {[%emt 00:00:15]} 34. Qxe5 {[%clk 00:00:41]} {[%emt
00:00:48]} Rxe5 {[%clk 00:18:31]} 35. Nf3 {[%clk 00:00:53]} {[%emt 00:00:18]}
Re2 {[%clk 00:18:57]} {[%emt 00:00:05]} 36. Rf4 {[%clk 00:00:50]} {[%emt
00:00:31]} Kg7 {[%clk 00:18:55]} {[%emt 00:00:33]} 37. Nd4 {[%clk 00:01:07]}
{[%emt 00:00:13]} Rxa2 {[%clk 00:18:59]} {[%emt 00:00:27]} 38. Nxb5 {[%clk
00:01:27]} {[%emt 00:00:09]} Rb2 {[%clk 00:19:09]} {[%emt 00:00:20]} 39. Nd4
{[%clk 00:01:47]} {[%emt 00:00:09]} Ne4 {[%clk 00:19:22]} {[%emt 00:00:18]} 40.
f3 {[%clk 00:00:48]} {[%emt 00:01:29]} Nc5 {[%clk 00:19:23]} {[%emt 00:00:29]}
41. Nc6 {[%clk 00:00:44]} {[%emt 00:00:33]} Nd3 {[%clk 00:18:06]} {[%emt
00:01:48]} 42. Rg4 {[%clk 00:00:33]} {[%emt 00:00:39]} h5 {[%clk 00:18:31]}
{[%emt 00:00:07]} 43. Rg5 {[%clk 00:00:34]} {[%emt 00:00:29]} Nf4 {[%emt
00:00:34]} 44. Nxa5 {[%clk 00:00:33]} {[%emt 00:00:04]} f6 {[%clk 00:19:07]}
{[%emt 00:00:17]} 45. Rg3 {[%clk 00:00:50]} {[%emt 00:00:11]} Ne2 {[%clk
00:19:33]} {[%emt 00:00:06]} 0-1

[Event "Latvijas 2022. gada jauniešu čempionāta fināls"]
[Site "Riga, Latvia"]
[Date "2022.06.15"]
[Round "6.10"]
[White "Jansone, Melanija Luize"]
[Black "Krasilnikova, Marija"]
[Result "1-0"]
[TimeControl "3600+30"]
[WhiteElo "1590"]
[BlackElo "1300"]

1. e4 {[%clk 01:00:58]} e5 {[%clk 01:00:56]} {[%emt 00:00:06]} 2. Nf3 {[%clk
01:01:21]} {[%emt 00:00:06]} Nc6 {[%clk 01:01:22]} {[%emt 00:00:04]} 3. d4
{[%clk 01:01:42]} {[%emt 00:00:08]} exd4 {[%clk 01:01:48]} {[%emt 00:00:05]} 4.
Nxd4 {[%clk 01:02:05]} {[%emt 00:00:07]} Bc5 {[%clk 01:01:46]} {[%emt
00:00:33]} 5. Nf5 {[%clk 01:02:00]} {[%emt 00:00:35]} Qf6 {[%clk 01:00:48]}
{[%emt 00:01:28]} 6. Nc3 {[%clk 01:02:21]} {[%emt 00:00:08]} Nge7 {[%clk
00:58:26]} {[%emt 00:02:52]} 7. Ne3 {[%clk 01:02:42]} {[%emt 00:00:09]} O-O
{[%clk 00:54:28]} {[%emt 00:04:28]} 8. Be2 {[%clk 01:02:58]} {[%emt 00:00:13]}
Nd4 {[%clk 00:44:57]} {[%emt 00:10:03]} 9. Bd3 {[%clk 01:03:09]} {[%emt
00:00:18]} d6 {[%clk 00:41:26]} {[%emt 00:04:02]} 10. O-O {[%clk 01:02:32]}
{[%emt 00:01:06]} a6 {[%clk 00:37:28]} {[%emt 00:04:29]} 11. Kh1 {[%clk
00:59:16]} {[%emt 00:03:45]} Ng6 {[%clk 00:30:24]} {[%emt 00:07:33]} 12. f4
{[%clk 00:46:55]} {[%emt 00:12:51]} c6 {[%clk 00:12:53]} {[%emt 00:18:02]} 13.
e5 {[%clk 00:30:12]} {[%emt 00:17:13]} Qe7 {[%clk 00:01:11]} {[%emt 00:12:12]}
14. Ne4 {[%clk 00:23:17]} {[%emt 00:07:25]} dxe5 {[%clk 00:00:36]} {[%emt
00:01:05]} 15. f5 {[%clk 00:23:19]} {[%emt 00:00:28]} Nf4 {[%clk 00:00:37]}
{[%emt 00:00:29]} 16. f6 {[%clk 00:23:17]} {[%emt 00:00:33]} gxf6 {[%clk
00:00:50]} {[%emt 00:00:17]} 17. g3 {[%clk 00:19:34]} {[%emt 00:04:12]} Nxd3
{[%clk 00:00:34]} {[%emt 00:00:47]} 18. Nxf6+ {[%clk 00:19:36]} {[%emt
00:00:27]} Kg7 {[%clk 00:00:37]} {[%emt 00:00:27]} 19. Qh5 {[%clk 00:16:14]}
{[%emt 00:03:51]} Bf5 {[%clk 00:00:35]} {[%emt 00:00:33]} 20. Nxf5+ {[%clk
00:16:01]} {[%emt 00:00:43]} Nxf5 {[%clk 00:00:54]} {[%emt 00:00:10]} 21. Qxh7+
{[%clk 00:14:38]} {[%emt 00:01:53]} Kxf6 {[%clk 00:01:20]} {[%emt 00:00:05]} 22.
Qxf5+ {[%clk 00:14:58]} {[%emt 00:00:10]} Kg7 {[%clk 00:01:44]} {[%emt
00:00:06]} 23. Qg4+ {[%clk 00:15:09]} {[%emt 00:00:17]} Kh8 {[%clk 00:01:57]}
{[%emt 00:00:19]} 24. Qh5+ {[%clk 00:14:54]} {[%emt 00:00:45]} Kg8 {[%clk
00:02:13]} {[%emt 00:00:14]} 25. cxd3 {[%clk 00:13:08]} {[%emt 00:02:17]} Rfc8
{[%clk 00:01:32]} {[%emt 00:01:10]} 26. Bg5 {[%clk 00:12:49]} {[%emt 00:00:50]}
Qd7 {[%clk 00:01:29]} {[%emt 00:00:33]} 27. Bf6 {[%clk 00:12:28]} 1-0

[Event "Latvijas 2022. gada jauniešu čempionāta fināls"]
[Site "Riga, Latvia"]
[Date "2022.06.15"]
[Round "6.17"]
[White "Jeronovics, Toms"]
[Black "Tolmacevs, Romans"]
[Result "1/2-1/2"]
[TimeControl "3600+30"]
[WhiteElo "1273"]
[BlackElo "1466"]

1. e4 {[%clk 01:00:58]} {[%emt 00:00:02]} c6 {[%clk 01:01:00]} {[%emt
00:00:01]} 2. d4 {[%clk 01:01:19]} {[%emt 00:00:09]} d5 {[%clk 01:01:29]}
{[%emt 00:00:02]} 3. e5 {[%clk 01:01:40]} {[%emt 00:00:07]} Bf5 {[%clk
01:01:57]} {[%emt 00:00:02]} 4. Nf3 {[%clk 01:01:52]} {[%emt 00:00:19]} e6
{[%clk 01:02:26]} {[%emt 00:00:02]} 5. Be2 {[%clk 01:01:31]} {[%emt 00:00:49]}
Nd7 {[%clk 01:02:14]} {[%emt 00:00:42]} 6. O-O {[%clk 01:01:07]} {[%emt
00:00:54]} Ne7 {[%clk 01:01:40]} {[%emt 00:01:05]} 7. Nbd2 {[%clk 00:59:55]}
{[%emt 00:01:42]} Rc8 {[%clk 00:56:24]} {[%emt 00:05:46]} 8. c4 {[%clk
00:52:19]} {[%emt 00:08:05]} Ng6 {[%clk 00:47:39]} {[%emt 00:09:15]} 9. g3
{[%clk 00:46:25]} {[%emt 00:06:24]} Be7 {[%clk 00:42:41]} {[%emt 00:05:27]} 10.
h4 {[%clk 00:37:35]} {[%emt 00:09:21]} Bg4 {[%clk 00:36:43]} {[%emt 00:06:28]}
11. Kg2 {[%clk 00:33:46]} {[%emt 00:04:18]} c5 {[%clk 00:23:59]} {[%emt
00:13:16]} 12. cxd5 {[%clk 00:25:54]} {[%emt 00:08:21]} exd5 {[%clk 00:23:59]}
{[%emt 00:00:30]} 13. Qb3 {[%clk 00:24:04]} {[%emt 00:02:20]} Nb6 {[%clk
00:19:58]} {[%emt 00:04:32]} 14. Bb5+ {[%clk 00:22:54]} {[%emt 00:01:39]} Bd7
{[%clk 00:19:23]} {[%emt 00:01:06]} 15. h5 {[%clk 00:21:44]} {[%emt 00:01:39]}
Nf8 {[%clk 00:19:39]} {[%emt 00:00:16]} 16. a4 {[%clk 00:18:03]} {[%emt
00:04:11]} Ne6 {[%clk 00:17:19]} {[%emt 00:02:50]} 17. a5 {[%clk 00:17:29]}
{[%emt 00:01:04]} c4 {[%clk 00:16:27]} {[%emt 00:01:22]} 18. Bxd7+ {[%clk
00:15:47]} {[%emt 00:02:11]} Qxd7 {[%clk 00:16:44]} {[%emt 00:00:14]} 19. Qc2
{[%clk 00:14:53]} {[%emt 00:01:23]} Na8 {[%clk 00:16:53]} {[%emt 00:00:21]} 20.
Nb1 {[%clk 00:14:26]} {[%emt 00:00:55]} Nac7 {[%clk 00:17:05]} {[%emt
00:00:21]} 21. Nc3 {[%clk 00:14:40]} {[%emt 00:00:16]} Na6 {[%clk 00:13:52]}
{[%emt 00:03:43]} 22. Na2 {[%clk 00:12:02]} {[%emt 00:03:06]} Qb5 {[%clk
00:12:11]} {[%emt 00:02:12]} 23. Bd2 {[%clk 00:12:01]} {[%emt 00:00:31]} h6
{[%clk 00:08:52]} {[%emt 00:03:50]} 24. Bc3 {[%clk 00:11:00]} {[%emt 00:01:30]}
O-O {[%clk 00:08:03]} {[%emt 00:01:20]} 25. Nd2 {[%clk 00:10:53]} {[%emt
00:00:35]} Rc7 {[%clk 00:07:13]} {[%emt 00:01:22]} 26. f4 {[%clk 00:10:08]}
{[%emt 00:01:14]} Nd8 {[%clk 00:04:50]} {[%emt 00:02:54]} 27. Nb1 {[%clk
00:08:57]} {[%emt 00:01:39]} Qe8 {[%clk 00:02:51]} {[%emt 00:02:31]} 28. Qf5
{[%clk 00:07:47]} {[%emt 00:01:39]} Nc6 {[%clk 00:01:42]} {[%emt 00:01:40]} 29.
Nd2 {[%clk 00:07:10]} {[%emt 00:01:06]} Qc8 {[%clk 00:01:18]} {[%emt 00:00:54]}
30. Qxc8 {[%clk 00:07:10]} {[%emt 00:00:30]} Rfxc8 {[%clk 00:01:47]} {[%emt
00:00:02]} 31. Nf3 {[%clk 00:07:14]} {[%emt 00:00:25]} Nab4 {[%clk 00:01:31]}
{[%emt 00:00:46]} 1/2-1/2